bitfinex/quotes_SOLUSD_20240613
["timestamp","ask_amount","ask_price","bid_price","bid_amount"]
[1718290959060,2.4836,148.98,148.91,4.9694]
[1718290959238,20.0,148.98,148.95,2.4839]
[1718290959635,2.4834,148.99,148.94,2.4841]
[1718290959834,12.4146,149.02,148.96,2.4838]
[1718290959835,2.4832,149.0,148.96,2.4838]
[1718290960360,7.4487,149.02,148.94,2.4841]
[1718290960650,4.9662,149.01,148.92,9.9381]
[1718290960952,2.4834,148.99,148.95,2.484]
[1718290961126,2.4831,149.01,148.96,2.4837]
[1718290961332,24.9658,149.02,148.95,2.484]
[1718290961557,32.4144,149.02,148.95,2.484]
[1718290961740,2.4834,148.99,148.94,2.4841]
[1718290961941,2.4834,148.99,148.95,2.484]
[1718290962331,2.4834,148.99,148.95,2.4839]
[1718290962531,12.4153,149.01,148.94,2.4841]
[1718290962750,2.4835,148.98,148.94,2.4841]
[1718290963051,2.4839,148.96,148.92,2.4844]
[1718290963448,2.4838,148.97,148.93,2.4843]
[1718290963640,2.4839,148.96,148.92,2.4844]
[1718290964234,2.4837,148.97,148.93,2.4843]
[1718290964554,2.4845,148.92,148.88,2.4851]
[1718290964759,16.4882,148.97,148.86,15.5761]
[1718290964760,2.4849,148.9,148.86,15.5761]
[1718290964932,2.4849,148.9,148.85,6.9796953]
[1718290964933,17.3932,148.91,148.85,0.8073953]
[1718290965259,2.4855,148.86,148.85,0.8073953]
[1718290966840,2.4855,148.87,148.85,0.8073953]
[1718290967438,2.4855,148.86,148.85,0.8073953]
[1718290967760,24.8554,148.86,148.85,0.8073953]
[1718290968056,24.8554,148.86,148.82,8.34461385]
[1718290968057,7.4581,148.83,148.82,8.34461385]
[1718290968256,25.0304,148.83,148.82,8.34461385]
[1718290968468,27.4581,148.83,148.82,8.34461385]
[1718290968954,27.6281,148.83,148.82,8.34461385]
[1718290969139,34.9162,148.83,148.82,8.34461385]
[1718290969351,90.2004,148.83,148.82,8.34461385]
[1718290969580,2.4874,148.75,148.7,6.8073953]
[1718290969771,2.4878,148.73,148.7,6.8073953]
[1718290969950,2.488,148.72,148.7,6.8073953]
[1718290970149,2.4877,148.73,148.7,6.8073953]
[1718290970962,2.4879,148.72,148.7,6.8073953]
[1718290971168,2.4877,148.73,148.7,6.8073953]
[1718290971555,2.488,148.71,148.7,6.8073953]
[1718290971773,7.4641,148.71,148.7,6.8073953]
[1718290971956,7.6341,148.71,148.7,6.8073953]
[1718290972158,22.488,148.71,148.7,6.8073953]
[1718290972671,27.6341,148.71,148.7,6.8073953]
[1718290972874,20.0,148.71,148.7,6.8073953]
[1718290973048,2.4875,148.74,148.7,6.8073953]
[1718290973252,2.4879,148.72,148.7,6.8073953]
[1718290973452,32.6882,148.78,148.7,6.8073953]
[1718290973871,2.4871,148.77,148.71,2.488]
[1718290974079,16.5095,148.8,148.7,9.2954953]
[1718290974080,2.4872,148.76,148.7,9.2954953]
[1718290974265,2.4874,148.75,148.7,9.2954953]
[1718290974465,2.4872,148.76,148.7,9.2955953]
[1718290974655,2.4868,148.78,148.72,2.4877]
[1718290974883,2.487,148.77,148.71,2.488]
[1718290975063,2.4873,148.76,148.7,6.8073953]
[1718290975390,207.4593,148.81,148.7,6.8073953]
[1718290975391,2.4871,148.77,148.7,6.8073953]
[1718290975684,2.4872,148.76,148.71,2.488]
[1718290976059,2.487,148.78,148.7,6.8073953]
[1718290976252,2.4867,148.79,148.73,2.4877]
[1718290976574,2.4863,148.81,148.75,2.4873]
[1718290976754,264.8717,148.84,148.74,2.4875]
[1718290977088,2.4867,148.79,148.7,6.8073953]
[1718290977273,2.4869,148.78,148.73,2.4875]
[1718290977479,2.4875,148.75,148.7,6.8073953]
[1718290977782,2.4876,148.74,148.7,6.8073953]
[1718290977953,20.17,148.78,148.7,6.8073953]
[1718290978155,2.488,148.71,148.7,6.8073953]
[1718290978376,11.87552945,148.76,148.7,6.8073953]
[1718290978587,20.0,148.75,148.7,6.8073953]
[1718290978959,2.4877,148.73,148.7,6.8073953]
[1718290979274,2.4875,148.75,148.7,6.8073953]
[1718290979497,2.4875,148.74,148.7,6.8073953]
[1718290979657,2.4877,148.73,148.7,6.8073953]
[1718290979857,2.4879,148.72,148.7,6.8073953]
[1718290980053,2.488,148.71,148.7,6.8073953]
[1718290980591,144.63696726,148.77,148.7,6.8073953]
[1718290980760,2.4869,148.78,148.7,6.8073953]
[1718290980960,2.4869,148.78,148.72,2.4878]
[1718290981182,2.4867,148.79,148.7,6.8073953]
[1718290981392,6.90053167,148.8,148.71,4.9759]
[1718290981680,267.3578,148.84,148.73,2.4876]
[1718290981681,4.9722,148.83,148.73,2.4876]
[1718290981857,2.4867,148.8,148.74,2.4874]
[1718290982058,6.90281434,148.82,148.72,4.9757]
[1718290982261,259.9,148.84,148.72,0.17]
[1718290982477,4.9724,148.83,148.71,22.6958]
[1718290982678,266.80202867,148.84,148.76,2.4871]
[1718290982890,266.80202867,148.84,148.73,4.9754]
[1718290982891,259.9,148.84,148.72,0.34]
[1718290983064,49.4119,148.89,148.81,2.4862]
[1718290983065,286.38,148.89,148.81,2.4862]
[1718290983256,259.9,148.89,148.74,0.17]
[1718290983494,6.90195413,148.88,148.77,7.4609]
[1718290983661,2.4854,148.87,148.81,2.4862]
[1718290983855,4.9695,148.91,148.8,16.002]
[1718290984083,2.4857,148.85,148.8,18.4885]
[1718290984284,4.9702,148.89,148.83,2.486]
[1718290984285,9.38952165,148.89,148.83,2.486]
[1718290984471,431.5915,148.92,148.81,23.6064]
[1718290984472,26.48,148.92,148.81,23.6064]
[1718290984672,2.4849,148.9,148.85,2.4856]
[1718290984979,2.4847,148.91,148.85,2.4856]
[1718290985173,2.4851,148.89,148.84,2.4858]
[1718290985373,2.4852,148.88,148.83,2.486]
[1718290985570,259.9,148.94,148.81,26.2022]
[1718290985880,2.4847,148.91,148.85,2.4856]
[1718290986184,2.4849,148.9,148.85,2.4856]
[1718290986386,2.4847,148.91,148.86,2.4855]
[1718290986573,2.4845,148.93,148.84,4.9717]
[1718290986893,259.9,148.94,148.84,4.9717]
[1718290986894,262.3842,148.94,148.89,2.485]
[1718290987062,2.4842,148.94,148.89,2.485]
[1718290987504,4.9678,148.96,148.84,9.9434]
[1718290987691,100.0,148.95,148.82,0.17]
[1718290987870,4.9686,148.94,148.86,2.4854]
[1718290988187,11.514,148.97,148.85,9.9428]
[1718290988363,2.4842,148.94,148.88,2.485]
[1718290988570,2.4843,148.93,148.88,2.485]
[1718290988895,4.9686,148.94,148.82,0.17]
[1718290989060,114.9037,148.96,148.82,0.51]
[1718290989391,9.39535709,148.98,148.89,4.9701]
[1718290989600,646.2,149.01,148.89,14.9098]
[1718290989777,2.4836,148.98,148.9,4.9694]
[1718290989979,2.4836,148.98,148.92,2.4844]
[1718290990173,2.4837,148.97,148.92,2.4844]
[1718290990370,20.0,149.0,148.93,2.4843]
[1718290990687,2.4838,148.97,148.89,4.9698]
[1718290990860,655.59225518,149.01,148.92,4.969]
[1718290991061,646.2,149.01,148.97,2.4836]
[1718290991261,646.2,149.01,148.92,7.4534]
[1718290991262,11.5879,149.07,148.94,9.9364]
[1718290991464,11.5879,149.07,148.99,2.4832]
[1718290991691,2.4827,149.03,148.98,2.4835]
[1718290991915,4.965,149.05,148.96,2.4837]
[1718290992077,12.4141,149.03,148.93,0.34]
[1718290992283,4.9658,149.02,148.93,2.4842]
[1718290992520,4.9658,149.02,148.94,2.4841]
[1718290992521,2.4834,148.99,148.94,2.4841]
[1718290992811,100.0,149.05,148.91,10.9801]
[1718290992812,271.8527317,149.08,148.93,0.17]
[1718290993027,20.0,149.05,148.96,4.9675]
[1718290993183,20.0,149.05,148.96,2.4837]
[1718290993184,2.4829,149.02,148.96,2.4837]
[1718290993385,2.4827,149.03,148.98,2.4834]
[1718290993585,27.4468,149.06,148.94,4.9683]
[1718290993806,2.4827,149.03,148.94,4.9683]
[1718290994008,2.4827,149.03,148.97,2.4835]
[1718290994204,2.4826,149.04,148.95,4.9678]
[1718290994424,2.4826,149.04,148.98,2.4834]
[1718290995406,7.4468,149.06,148.97,2.4836]
[1718290995603,2.4835,148.99,148.93,2.4843]
[1718290995830,2.4838,148.97,148.88,28.5135]
[1718290996009,2.4834,148.99,148.93,2.4842]
[1718290996210,2.4836,148.98,148.9,4.9694]
[1718290996416,37.3806,149.02,148.9,4.9694]
[1718290996417,2.4832,149.0,148.92,4.969]
[1718290996615,20.0,149.02,148.92,2.4844]
[1718290996927,2.4836,148.98,148.93,2.4843]
[1718290997309,4.9667,148.99,148.91,6.0107]
[1718290997522,4.9667,148.99,148.91,8.4954]
[1718290997722,20.0,149.02,148.91,8.4954]
[1718290997723,2.4836,148.98,148.93,2.4843]
[1718290997939,2.484,148.96,148.9,2.4848]
[1718290998446,12.4172,148.99,148.88,16.0879]
[1718290998447,2.484,148.95,148.89,2.485]
[1718290998608,2.484,148.95,148.88,16.0879]
[1718290998609,2.4841,148.95,148.9,2.4848]
[1718290998813,2.4838,148.97,148.91,2.4846]
[1718290999026,2.4842,148.94,148.89,2.4849]
[1718290999238,2.4842,148.94,148.88,18.573]
[1718290999440,20.0,148.98,148.88,16.0879]
[1718290999737,17.3865,148.97,148.88,16.0879]
[1718290999913,2.4842,148.94,148.88,18.5729]
[1718291000110,2.4842,148.94,148.89,2.485]
[1718291000348,2.4842,148.94,148.88,18.5731]
[1718291000549,2.4842,148.94,148.89,2.485]
[1718291000746,2.4842,148.94,148.88,16.0879]
[1718291001248,2.4839,148.96,148.9,2.4848]
[1718291001546,2.4839,148.96,148.88,16.0879]
[1718291001547,2.4837,148.97,148.91,2.4846]
[1718291001722,2.4837,148.97,148.88,28.5137]
[1718291001723,2.4837,148.97,148.92,2.4845]
[1718291001917,2.4837,148.97,148.91,2.4846]
[1718291002114,4.9675,148.97,148.88,16.0879]
[1718291002348,2.4846,148.92,148.88,16.0879]
[1718291002521,2.4844,148.93,148.88,18.573]
[1718291002842,2.484,148.96,148.9,2.4847]
[1718291003056,2.484,148.95,148.9,2.4847]
[1718291003615,20.0,148.97,148.91,2.4846]
[1718291003817,2.4839,148.96,148.88,23.5435]
[1718291004121,37.3862,148.97,148.88,18.573]
[1718291004331,20.0,148.97,148.88,16.0879]
[1718291004643,12.4207,148.95,148.88,16.0879]
[1718291005257,20.0,148.94,148.84,16.0651]
[1718291005428,2.4852,148.88,148.84,16.0651]
[1718291005730,2.4854,148.87,148.82,2.4861]
[1718291005925,2.4854,148.87,148.81,8.6487]
[1718291006123,2.4852,148.88,148.83,2.4859]
[1718291006323,2.4852,148.88,148.81,11.1351]
[1718291006519,2.4853,148.87,148.82,2.4861]
[1718291006724,20.0,148.9,148.81,6.1624]
[1718291006940,2.4851,148.89,148.84,2.4858]
[1718291007176,22.4849,148.9,148.85,2.4856]
[1718291007468,2.4848,148.91,148.86,2.4854]
[1718291007649,20.0,148.92,148.85,2.4856]
[1718291007850,2.4848,148.91,148.85,2.4856]
[1718291008050,2.4849,148.9,148.85,2.4856]
[1718291008251,20.0,148.92,148.83,2.4859]
[1718291008252,2.4852,148.88,148.83,2.4859]
[1718291008458,2.4849,148.9,148.82,5.1423]
[1718291008658,2.4849,148.9,148.85,2.4856]
[1718291008868,2.485,148.89,148.84,2.4857]
[1718291009784,20.0,148.92,148.82,0.17]
[1718291009944,4.9705,148.88,148.81,8.6487]
[1718291010150,4.9699,148.9,148.82,2.4861]
[1718291010377,2.4854,148.87,148.82,2.4861]
[1718291010580,2.4852,148.88,148.83,2.486]
[1718291010757,2.4854,148.87,148.82,2.4861]
[1718291010959,2.4854,148.87,148.81,8.6487]
[1718291011165,4.9705,148.88,148.8,18.9525]
[1718291011372,2.4856,148.86,148.8,18.9525]
[1718291011684,2.4857,148.85,148.8,16.466]
[1718291011971,24.9709,148.87,148.79,2.4867]
[1718291012551,24.9709,148.87,148.76,16.0243]
[1718291012552,120.0,148.87,148.76,16.0243]
[1718291012778,4.9722,148.83,148.76,16.0243]
[1718291012969,2.4865,148.81,148.75,2.4873]
[1718291013173,7.4577,148.84,148.73,8.792]
[1718291013174,2.4867,148.79,148.73,8.792]
[1718291013351,2.4867,148.79,148.73,6.3045]
[1718291013679,2.4867,148.79,148.73,8.7921]
[1718291013968,2.4866,148.8,148.74,2.4874]
[1718291014176,2.4866,148.8,148.75,2.4873]
[1718291014493,2.4867,148.79,148.73,8.7921]
[1718291014782,2.4864,148.81,148.73,6.3045]
[1718291014961,2.4864,148.81,148.76,2.4871]
[1718291015164,2.4863,148.82,148.76,2.4871]
[1718291015660,2.4864,148.81,148.75,2.4873]
[1718291016178,2.4865,148.8,148.75,2.4873]
[1718291016483,2.4868,148.79,148.73,8.7921]
[1718291016678,2.4866,148.8,148.75,2.4873]
[1718291016980,2.4866,148.8,148.74,2.4874]
[1718291017170,2.4867,148.79,148.73,8.7922]
[1718291017793,2.4874,148.75,148.72,15.0271]
[1718291018095,31.1246,148.81,148.7,6.8073953]
[1718291018252,31.1246,148.81,148.71,2.488]
[1718291018253,2.487,148.77,148.71,2.488]
[1718291018450,38.5839,148.81,148.72,2.4878]
[1718291018685,2.4868,148.79,148.73,2.4877]
[1718291019379,2.4866,148.8,148.74,2.4875]
[1718291019684,20.0,148.81,148.72,0.17]
[1718291019983,2.4859,148.84,148.78,2.4867]
[1718291020167,2.4857,148.85,148.79,2.4865]
[1718291020369,20.0,148.86,148.79,2.4865]
[1718291020688,4.9708,148.87,148.74,9.9501]
[1718291020689,2.4866,148.8,148.74,2.4874]
[1718291020859,7.4578,148.84,148.75,2.4873]
[1718291021057,2.4864,148.81,148.75,2.4873]
[1718291021256,2.4865,148.8,148.74,0.17]
[1718291021457,126.58,148.85,148.73,0.17]
[1718291021676,2.4873,148.76,148.71,15.1261]
[1718291021879,2.4872,148.76,148.71,17.6141]
[1718291022077,2.4872,148.76,148.71,15.1261]
[1718291022279,100.0,148.77,148.7,6.8073953]
[1718291022485,2.488,148.71,148.7,6.8073953]
[1718291023683,7.4641,148.71,148.7,6.8073953]
[1718291023884,27.4641,148.71,148.7,6.8073953]
[1718291024087,22.488,148.71,148.7,6.8073953]
[1718291024475,44.8804,148.71,148.7,6.8073953]
[1718291024785,4.9776,148.67,148.58,2.4902]
[1718291025083,24.9776,148.67,148.58,2.4902]
[1718291025389,2.4887,148.67,148.6,2.4898]
[1718291025867,20.0,148.7,148.6,2.4898]
[1718291025868,2.4889,148.66,148.6,2.4898]
[1718291026070,2.4889,148.66,148.59,2.49]
[1718291026262,2.4894,148.63,148.55,23.4207953]
[1718291026467,2.4888,148.67,148.57,4.9805]
[1718291026668,2.4892,148.65,148.59,2.49]
[1718291027384,20.0,148.67,148.55,35.8739953]
[1718291027596,2.4891,148.65,148.56,5.151]
[1718291027775,2.4891,148.65,148.59,2.4899]
[1718291028474,20.0,148.67,148.6,2.4898]
[1718291028475,2.4889,148.66,148.6,2.4898]
[1718291028672,12.4409,148.71,148.58,4.9804]
[1718291028888,2.4886,148.68,148.59,5.66]
[1718291029079,2.4886,148.68,148.62,2.4894]
[1718291029264,12.4439,148.67,148.59,2.66]
[1718291029466,9.9546,148.68,148.6,4.9797]
[1718291029467,2.4885,148.68,148.6,4.9797]
[1718291029679,39.0814,148.7,148.61,2.4896]
[1718291029889,2.4894,148.63,148.54,9.9632]
[1718291030103,2.4893,148.64,148.56,0.68]
[1718291030288,12.4424,148.69,148.56,0.68]
[1718291030508,2.4891,148.65,148.59,2.4899]
[1718291030792,100.0,148.68,148.56,0.68]
[1718291031092,2.4898,148.61,148.55,17.2739953]
[1718291031397,26.64,148.66,148.57,2.4903]
[1718291031610,2.4892,148.64,148.58,2.4901]
[1718291032190,26.64,148.66,148.56,4.9809]
[1718291032399,2.4892,148.64,148.56,4.9809]
[1718291032572,2.4892,148.64,148.58,2.49]
[1718291033104,2.4896,148.62,148.56,2.4904]
[1718291033287,2.4894,148.63,148.55,17.2739953]
[1718291033494,20.0,148.65,148.55,17.2739953]
[1718291033798,2.4894,148.63,148.57,2.4903]
[1718291034877,2.4896,148.62,148.56,2.4905]
[1718291035100,2.4897,148.61,148.55,19.7645953]
[1718291035478,20.0,148.65,148.56,0.34]
[1718291035801,2.4892,148.64,148.58,2.4901]
[1718291036177,20.0,148.65,148.57,0.17]
[1718291036378,2.4895,148.63,148.57,2.6604]
[1718291036792,2.4893,148.64,148.58,2.4902]
[1718291037085,2.4893,148.64,148.59,2.49]
[1718291037273,20.0,148.65,148.58,2.4901]
[1718291037475,2.4893,148.64,148.58,2.4901]
[1718291037805,26.64,148.66,148.57,0.17]
[1718291037974,2.4892,148.64,148.59,2.4899]
[1718291038177,26.64,148.66,148.6,2.4897]
[1718291038494,2.4888,148.67,148.6,0.17]
[1718291038680,2.4886,148.68,148.62,2.4894]
[1718291038876,2.4886,148.68,148.63,2.4893]
[1718291039102,31.6166,148.7,148.63,2.4893]
[1718291039103,2.4884,148.69,148.63,2.4893]
[1718291039277,2.4888,148.67,148.61,0.17]
[1718291039477,26.64,148.7,148.61,0.17]
[1718291039478,24.9769,148.69,148.61,2.4896]
[1718291039679,13.14669661,148.72,148.63,2.4892]
[1718291039885,9.9523,148.71,148.62,2.6594]
[1718291040186,2.4887,148.67,148.62,2.6595]
[1718291040378,2.4888,148.67,148.62,0.17]
[1718291040683,4.9766,148.7,148.63,2.4893]
[1718291040886,2.4884,148.69,148.64,2.4891]
[1718291041195,2.4883,148.7,148.65,2.489]
[1718291041398,4.9759,148.72,148.62,5.489]
[1718291041709,2.4883,148.7,148.64,2.4891]
[1718291042076,2.4884,148.69,148.64,2.4891]
[1718291042404,2.4883,148.7,148.64,2.4891]
[1718291042585,2.4884,148.69,148.64,2.4891]
[1718291043103,2.4889,148.66,148.61,18.2027]
[1718291043314,2.4886,148.68,148.62,2.4894]
[1718291043515,9.9534,148.7,148.62,2.4894]
[1718291043516,2.4887,148.67,148.62,2.4894]
[1718291043811,2.4889,148.66,148.61,18.2027]
[1718291043981,4.9763,148.71,148.62,0.51]
[1718291044306,9.9516,148.72,148.62,0.51]
[1718291044307,2.4884,148.69,148.64,2.4891]
[1718291044536,266.89661451,148.74,148.65,0.17]
[1718291044725,2.4878,148.72,148.65,5.488]
[1718291044909,2.4872,148.76,148.69,4.9766]
[1718291045113,26.61,148.79,148.67,22.2908]
[1718291045314,2.4879,148.72,148.67,24.7795]
[1718291045513,2.4881,148.71,148.67,22.2908]
[1718291046041,12.438,148.74,148.67,22.2908]
[1718291046042,2.4882,148.7,148.67,22.2908]
[1718291046216,2.4882,148.7,148.65,2.829]
[1718291046217,4.9763,148.71,148.63,22.3884]
[1718291046538,4.9754,148.73,148.63,29.8565]
[1718291046736,2.4886,148.68,148.63,24.8777]
[1718291047036,2.4884,148.69,148.64,2.4892]
[1718291047251,14.9279,148.72,148.65,2.4889]
[1718291047252,2.4882,148.7,148.65,2.4889]
[1718291047409,2.4881,148.71,148.66,2.4888]
[1718291048712,32.4383,148.74,148.63,44.7927]
[1718291048713,2.4879,148.72,148.67,2.4887]
[1718291049219,2.4879,148.72,148.68,2.4885]
[1718291049407,36.5601,148.75,148.68,2.4885]
[1718291049408,2.4878,148.73,148.68,2.4885]
[1718291049615,26.61,148.75,148.7,2.4881]
[1718291049616,29.0974,148.75,148.7,2.4881]
[1718291049808,4.9745,148.76,148.68,0.17]
[1718291050026,2.4871,148.77,148.72,2.4878]
[1718291050208,259.9,148.8,148.71,12.44]
[1718291050532,2.4869,148.78,148.73,2.4876]
[1718291050715,259.9,148.8,148.73,4.9753]
[1718291050918,2.4864,148.81,148.76,2.4871]
[1718291051117,2.4865,148.8,148.75,2.4873]
[1718291051319,4.9729,148.81,148.72,5.6555]
[1718291051523,12.4322,148.81,148.73,2.4876]
[1718291051736,2.4871,148.77,148.72,2.6578]
[1718291051944,26.61,148.82,148.73,0.17]
[1718291052234,31.5825,148.82,148.73,0.34]
[1718291052436,31.5825,148.82,148.74,2.4875]
[1718291052437,2.4867,148.79,148.74,2.4875]
[1718291052639,2.4865,148.81,148.75,2.4873]
[1718291052849,2.4866,148.8,148.75,2.4873]
[1718291053145,2.4862,148.82,148.77,2.4869]
[1718291053443,264.8713,148.86,148.77,0.17]
[1718291053736,2.4859,148.84,148.79,2.4866]
[1718291055225,267.3567,148.86,148.77,0.17]
[1718291055442,267.3567,148.86,148.76,15.5864]
[1718291055443,2.4869,148.78,148.76,15.0764]
[1718291055618,2.4872,148.76,148.72,16.2838]
[1718291055818,9.9459,148.81,148.72,16.2838]
[1718291055819,4.9739,148.78,148.72,16.2838]
[1718291056016,17.4071,148.79,148.72,16.2838]
[1718291056017,2.4873,148.76,148.72,16.2838]
[1718291056445,17.4087,148.78,148.72,16.2838]
[1718291056642,2.4873,148.75,148.72,16.2838]
[1718291056942,2.4873,148.76,148.72,16.2838]
[1718291057121,2.4871,148.77,148.72,18.7716]
[1718291057323,39.0425,148.81,148.72,16.2838]
[1718291057533,2.4866,148.8,148.75,2.4872]
[1718291057753,2.4864,148.81,148.76,2.4872]
[1718291057929,4.9715,148.85,148.74,7.4625]
[1718291058128,2.4861,148.83,148.78,2.4868]
[1718291058631,2.4862,148.82,148.77,2.487]
[1718291058947,2.4862,148.82,148.75,4.9746]
[1718291059153,2.4859,148.84,148.79,18.163]
[1718291059340,2.4865,148.8,148.79,15.6765]
[1718291059557,7.4577,148.84,148.79,15.6765]
[1718291059771,2.4861,148.83,148.79,15.6765]
[1718291059969,29.0956,148.86,148.81,2.4863]
[1718291060257,29.0956,148.86,148.79,15.6765]
[1718291060258,36.5522,148.86,148.79,15.6765]
[1718291060462,2.4859,148.84,148.79,18.1632]
[1718291061035,2.4859,148.84,148.79,18.1631]
[1718291061235,2.4858,148.85,148.8,2.4865]
[1718291062263,2.4859,148.84,148.79,18.1631]
[1718291063779,2.486,148.83,148.79,15.6765]
[1718291063941,2.4865,148.8,148.76,2.4871]
[1718291064265,2.4866,148.8,148.75,2.4873]
[1718291064654,12.4291,148.85,148.73,15.1802]
[1718291064834,12.4291,148.85,148.75,4.9747]
[1718291064835,20.0,148.84,148.75,4.9747]
[1718291065035,26.61,148.86,148.76,7.4616]
[1718291065258,26.61,148.86,148.8,2.4864]
[1718291065563,26.61,148.86,148.77,12.435]
[1718291065564,2.4858,148.84,148.79,2.4866]
[1718291067335,26.61,148.86,148.8,2.4865]
[1718291067336,2.4857,148.85,148.8,2.4865]
[1718291067547,2.4859,148.84,148.79,2.4866]
[1718291067967,2.486,148.83,148.78,2.4868]
[1718291068263,2.4866,148.8,148.74,0.17]
[1718291068484,26.61,148.86,148.77,2.4869]
[1718291068485,2.4862,148.82,148.77,2.4869]
[1718291068643,2.4861,148.83,148.76,5.1442]
[1718291068968,2.4861,148.83,148.79,2.4867]
[1718291069276,2.4858,148.85,148.8,2.4865]
[1718291069446,2.4859,148.84,148.79,2.4866]
[1718291069647,2.4858,148.85,148.8,2.4864]
[1718291069842,2.4854,148.87,148.82,2.486]
[1718291070065,2.4854,148.87,148.82,2.4861]
[1718291070676,2.4855,148.86,148.81,17.9216]
[1718291070881,4.9705,148.88,148.81,15.4353]
[1718291071043,2.4855,148.86,148.81,17.9216]
[1718291071365,27.4552,148.89,148.81,17.9216]
[1718291071366,2.4851,148.89,148.84,2.4858]
[1718291071565,2.4849,148.9,148.85,2.4856]
[1718291071949,4.9695,148.91,148.83,0.17]
[1718291072144,2.4852,148.88,148.83,2.8259]
[1718291072345,2.4852,148.88,148.83,0.34]
[1718291072550,2.4851,148.89,148.84,2.4858]
[1718291073265,2.4855,148.87,148.82,2.4861]
[1718291073450,2.4852,148.88,148.83,2.486]
[1718291073651,2.4854,148.87,148.82,2.4861]
[1718291073865,2.4853,148.88,148.83,2.486]
[1718291074173,2.4851,148.89,148.84,2.4858]
[1718291074669,9.9397,148.9,148.82,2.4861]
[1718291074854,2.4854,148.87,148.81,15.4353]
[1718291075058,2.4855,148.86,148.81,17.9215]
[1718291075444,2.4855,148.86,148.82,2.4862]
[1718291075751,2.4852,148.88,148.83,2.486]
[1718291075953,2.4854,148.87,148.82,2.4861]
[1718291076572,4.9702,148.89,148.81,15.4353]
[1718291076869,2.4854,148.87,148.82,2.4861]
[1718291077445,24.9696,148.91,148.84,2.4858]
[1718291077779,2.485,148.89,148.84,2.4858]
[1718291077959,2.4852,148.88,148.83,2.4859]
[1718291078264,4.9702,148.89,148.82,2.4861]
[1718291078469,2.4857,148.85,148.81,15.4353]
[1718291078648,4.9711,148.86,148.81,15.4353]
[1718291078850,2.4858,148.85,148.81,15.4353]
[1718291079362,2.4855,148.86,148.81,17.9216]
[1718291079566,26.61,148.88,148.81,15.4353]
[1718291079860,2.4854,148.87,148.83,2.4859]
[1718291080046,2.4855,148.86,148.81,15.4353]
[1718291080367,9.9416,148.87,148.81,15.4353]
[1718291080550,2.4859,148.84,148.81,15.4353]
[1718291081150,2.4856,148.86,148.81,17.9216]
[1718291081352,2.4857,148.85,148.81,17.9216]
[1718291082165,2.4857,148.85,148.81,15.4353]
[1718291082481,2.4857,148.85,148.81,17.4216]
[1718291082777,2.4857,148.85,148.81,14.9353]
[1718291082986,2.4861,148.83,148.81,14.9353]
[1718291083276,2.4859,148.84,148.81,14.9353]
[1718291085563,2.4858,148.85,148.81,14.9353]
[1718291086055,2.4859,148.84,148.81,14.9353]
[1718291087083,2.4857,148.85,148.81,14.9353]
[1718291087280,2.4859,148.84,148.81,14.9353]
[1718291087780,2.4858,148.85,148.81,17.4216]
[1718291087971,26.61,148.88,148.81,17.4216]
[1718291087972,29.0952,148.88,148.84,2.4858]
[1718291088178,6.98996307,148.89,148.84,2.4858]
[1718291088179,2.4851,148.89,148.84,2.4858]
[1718291088588,2.4852,148.88,148.83,2.4859]